Workbook

Sheet Cost Comparison
B2: SVCE Business Cost Comparison Calculator | T2: Effective 4/1/2018
B4: Required Information | N4: Optional Information
B5: Your Rate
B6: A1 (COM-1)
B8: Your Usage
H9: SUMMER | L9: WINTER
B10: =IF(VLOOKUP(B6,Rates!A:AA,2,0)=FALSE,"","One Month of Usage:") ->  | F10: Summer Billing Period (days): | J10: Winter Billing Period (days):
F11: =IF(VLOOKUP($B$6,Rates!A:AA,3,0)=FALSE," ","Summer Month Usage:") -> Summer Month Usage: | J11: =IF(VLOOKUP($B$6,Rates!A:AA,4,0)=FALSE," ","Winter Month Usage:") -> Winter Month Usage: | P11: PCIA Vintage: | R11: 2017
F12: =IF(VLOOKUP($B$6,Rates!A:AA,11,0)=FALSE," ","Max Peak (kW):") ->  | J12: =IF(VLOOKUP($B$6,Rates!A:AA,14,0)=FALSE," ","Max Peak (kW):") ->  | P12: Franchise Fee Exemption: | R12: No
F13: =IF(VLOOKUP($B$6,Rates!A:AA,12,0)=FALSE," ","Max Part Peak (kW):") ->  | J13: =IF(VLOOKUP($B$6,Rates!A:AA,15,0)=FALSE," ","Part Peak (kW):") ->  | P13: Phase: | R13: Single-phase
F14: =IF(VLOOKUP($B$6,Rates!A:AA,13,0)=FALSE," ","Max Demand (kW):") ->  | J14: =IF(VLOOKUP($B$6,Rates!A:AA,16,0)=FALSE," ","Max Demand (kW):") ->  | P14: CARE Discount: | R14: No
F15: =IF(VLOOKUP($B$6,Rates!A:AA,5,0)=FALSE," ","Peak (kWh):") ->  | J15: =IF(VLOOKUP($B$6,Rates!A:AA,8,0)=FALSE," ","Peak (kWh):") -> 
F16: =IF(VLOOKUP($B$6,Rates!A:AA,6,0)=FALSE," ","Part Peak (kWh):") ->  | J16: =IF(VLOOKUP($B$6,Rates!A:AA,9,0)=FALSE," ","Part Peak (kWh):") ->  | P16: (E19 Only) Voluntary or Mandatory Service: | R16: Voluntary
F17: =IF(VLOOKUP($B$6,Rates!A:AA,7,0)=FALSE," ","Off Peak (kWh):") ->  | J17: =IF(VLOOKUP($B$6,Rates!A:AA,10,0)=FALSE," ","Off Peak (kWh):") -> 
F18: =IF(VLOOKUP($B$6,Rates!A:AA,17,0)=FALSE," ","Summer Connected Load:") ->  | J18: =IF(VLOOKUP($B$6,Rates!A:AA,18,0)=FALSE," ","Winter Connected Load:") -> 
B20: Total Cost Summary | J20: Compare Options (select two from the orange menus below)
B21: Service Options | F21: Total Charges | L21: SVCE GreenStart (50%) | N21: PG&E Standard | P21: Difference
B22: SVCE GreenStart (50%) | F22: =SUM(F32:L32) -> 0 | J22: Total Cost | L22: =VLOOKUP(L21,$B$21:$F$26,5,FALSE) -> 0 | N22: =VLOOKUP(N21,$B$21:$F$26,5,FALSE) -> 0 | P22: =ABS(L22-N22) -> 0
B23: PG&E Standard | F23: =SUM(F33:L33) -> 0 | J23: Renewable % | L23: =VLOOKUP(L21,$B$40:$J$45,5,FALSE) -> 0.5 | N23: =VLOOKUP(N21,$B$40:$J$45,5,FALSE) -> 0.33 | P23: =ABS(L23-N23) -> 0.17
B24: SVCE GreenPrime (100%) | F24: =SUM(F34:L34) -> 0 | J24: =IF(J$39="lbs. (pounds)","Estimated Emissions (lbs.)","Estimated Emissions (MT)") -> Estimated Emissions (lbs.) | L24: =VLOOKUP(L21,$B$40:$J$45,9,FALSE) -> 0 | N24: =VLOOKUP(N21,$B$40:$J$45,9,FALSE) -> 0 | P24: =ABS(L24-N24) -> 0
B25: PG&E Solar Choice (50%) | F25: =SUM(F35:L35) -> 0
B26: PG&E Solar Choice (100%) | F26: =SUM(F36:L36) -> 0
J27: =IF(Calculation!B31<>0,"CARE Program Adjustment:","") ->  | L27: =IF(R14="Yes",SUM(CARE!D3:D7),"") -> 
J28: =IF(B6=Rates!A52,"Comparisons of streetlight rates (LS-1, LS-2, LS-3) are for electricity only, and do not include lamp fees imposed by PG&E.","") -> 
B29: Additional Billing Details
B30: Breakdown of Charges by Service
B31: Service Options | F31: PG&E Delivery Cost | H31: Generation Cost | J31: PCIA (PG&E Fee) | L31: Franchise Fee
B32: SVCE GreenStart (50%) | F32: =F33 -> 0 | H32: =Calculation!B37 -> 0 | J32: =Calculation!B38 -> 0 | L32: =Calculation!B39 -> 0
B33: PG&E Standard | F33: =Calculation!B34 -> 0 | H33: =Calculation!B33 -> 0 | J33: 0 | L33: 0
B34: SVCE GreenPrime (100%) | F34: =F33 -> 0 | H34: =H32+Calculation!B43 -> 0 | J34: =J32 -> 0 | L34: =L32 -> 0
B35: PG&E Solar Choice (50%) | F35: =F33 -> 0 | H35: =H33+Calculation!B42/2 -> 0 | J35: =J36/2 -> 0 | L35: 0
B36: PG&E Solar Choice (100%) | F36: =F33 -> 0 | H36: =H33+Calculation!B42 -> 0 | J36: =IF(L26="Pre-2009",0,Calculation!B41) -> 0 | L36: 0
B39: Breakdown of Energy Content | H39: Show emissions using (select): | J39: lbs. (pounds)
B40: Service Options | F40: Renewable Content (% of Total Power Supply) | H40: Emissions Factor (lbs. CO2/MWh)* | J40: Estimated Emissions (lbs. CO2) | L40: Service Description
B41: SVCE GreenStart (50%) | F41: 0.5 | H41: <25 | J41: =IF(J$39="lbs. (pounds)",25*Calculation!E$3/1000,25*Calculation!E$3/1000/2204.6) -> 0 | L41: Basic SVCE service (default)
B42: PG&E Standard | F42: 0.33 | H42: 294 | J42: =IF(J$39="lbs. (pounds)",H42*Calculation!E$3/1000,H42*Calculation!E$3/1000/2204.6) -> 0 | L42: Basic PG&E service (opt out)
B43: SVCE GreenPrime (100%) | F43: 1 | H43: 0 | J43: =IF(J$39="lbs. (pounds)",H43*Calculation!E$3/1000,H43*Calculation!E$3/1000/2204.6) -> 0 | L43: Optional 100% renewable SVCE service
B44: PG&E Solar Choice (50%) | F44: 0.65 | H44: =(1-F44)*H42 -> 102.9 | J44: =IF(J$39="lbs. (pounds)",H44*Calculation!E$3/1000,H44*Calculation!E$3/1000/2204.6) -> 0 | L44: Optional 50% solar PG&E service
B45: PG&E Solar Choice (100%) | F45: 1 | H45: 0 | J45: =IF(J$39="lbs. (pounds)",H45*Calculation!E$3/1000,H45*Calculation!E$3/1000/2204.6) -> 0 | L45: Optional 100% solar PG&E service
B46: * As reported to the California Energy Commission’s Power Source Disclosure Program, reflecting PG&E's most currently available emission factor (for CY 2016), as verified by The Climate Registry. Silicon Valley Clean Energy’s generation data is forecast for 2017 and may be subject to change. Actual generation data will be reported to the California Energy Commission in 2018.
B49: Glossary of Terms
B51: Required Account Data Terms
B52: Your Rate: | F52: The PG&E rate selected for billing your account. Different rates utilize different usage data to determine your charges due. Selecting a rate will highlight required usage.
B53: Non Time-of-Use Usage Data: | F53: Basic and older electric rates may charge you based on total usage, regardless of what time of day it is used. This usage may still be divided seasonally as defined by PG&E.
B54: Time-of-Use Usage Data: | F54: Usage data which is specific to certain times of the day. This is divided into peak, partial peak, and off peak periods and is also divided seasonally.
B55: Demand-Based Usage Data: | F55: Large business customers are also assessed demand charges, which are based on their maximum use of electricity during certain points of a billing cycle.
B57: Optional Account Data Terms
B58: Billing Period Length: | F58: Certain PG&E delivery charges are affected by the length of your billing period. If the data reviewed is for a longer or shorter period than indicated, it can be adjusted.
B59: PCIA Vintage: | F59: PG&E assesses fees to customers which choose a provider other than PG&E. This fee is based on when your address began taking SVCE service and your rate class.
B60: Franchise Fee Exemption: | F60: Customers which are a subdivision of the State of California (such as state facilities, city facilities, school districts) are exempt from the Franchise Fee Surcharge.
B61: Phase: | F61: Some small business customers may be either single-phase or poly-phase, impacting monthly PG&E meter charges.
B62: CARE Discount: | F62: CARE is a low-income discount available to qualifying residential households; certain businesses may (rarely) also qualify. Available to PG&E and SVCE customers equally.
B63: Medical Baseline Exemption: | F63: Customers with needed medical equipment may receive an adjustment to their tiered delivery rates. Available to PG&E and SVCE customers equally.
B64: E19 Voluntary/Mandatory: | F64: Customers may participate in the E19 on a voluntary or required basis due to their high usage. Voluntary assignment is denoted by the letter "V" (e.g. E19SV)

Sheet Calculation (hidden)
A1: Normalized PCIA | B1: ='Cost Comparison'!R11 -> 2017 | G1: PCIA Charge | H1: =IFERROR(B2*E3,0) -> 0
A2: PCIA Rate | B2: =VLOOKUP(E2,'PCIA FF'!A2:U12,MATCH(B1,'PCIA FF'!1:1,0),FALSE) -> 0.02466 | D2: PCIA Class | E2: =VLOOKUP('Cost Comparison'!B6,Rates!$A$70:$S$98,19,0) -> A1
A3: FF Rate | B3: =IF('Cost Comparison'!$R$12="No",VLOOKUP(E2,'PCIA FF'!A14:U24,MATCH(B1,'PCIA FF'!14:14,0),FALSE),0) -> 0.00062 | D3: Usage Eligible | E3: =SUMIF(C7:C15,"<>FALSE",B7:B15) -> 0 | G3: FF Charge | H3: =E3*B3 -> 0
A5: Bundled Rate Components
B6: kWh/KW | C6: Bundled Rate | D6: Bundled Charge | E6: PG&E Gen Rate | F6: PG&E Gen Charge | G6: SVCEA Gen Rate | H6: SVCEA Gen Charge
A7: Non-sea/non-tou | B7: ='Cost Comparison'!D10 -> 0 | C7: =VLOOKUP('Cost Comparison'!$B$6,Rates!$A$2:$W$31,2,0) -> FALSE | D7: =B7*C7 -> 0 | E7: =VLOOKUP('Cost Comparison'!$B$6,Rates!$A$36:$W$67,2,0) -> FALSE | F7: =B7*E7 -> 0 | G7: =VLOOKUP('Cost Comparison'!$B$6,Rates!$A$69:$W$100,2,0) -> FALSE | H7: =G7*B7 -> 0
A8: Summer seasonal | B8: ='Cost Comparison'!H11 -> 0 | C8: =VLOOKUP('Cost Comparison'!$B$6,Rates!$A$2:$W$31,3,0) -> 0.25386 | D8: 0 | E8: =VLOOKUP('Cost Comparison'!$B$6,Rates!$A$36:$W$67,3,0) -> 0.1257 | F8: 0 | G8: =VLOOKUP('Cost Comparison'!$B$6,Rates!$A$69:$W$100,3,0) -> 0.09288 | H8: 0
A9: Winter Seasonal | B9: ='Cost Comparison'!L11 -> 0 | C9: =VLOOKUP('Cost Comparison'!$B$6,Rates!$A$2:$W$31,4,0) -> 0.1967 | D9: 0 | E9: =VLOOKUP('Cost Comparison'!$B$6,Rates!$A$36:$W$67,4,0) -> 0.08648 | F9: 0 | G9: =VLOOKUP('Cost Comparison'!$B$6,Rates!$A$69:$W$100,4,0) -> 0.05601 | H9: 0
A10: Summer Peak | B10: ='Cost Comparison'!H15 -> 0 | C10: =VLOOKUP('Cost Comparison'!$B$6,Rates!$A$2:$W$31,5,0) -> FALSE | D10: 0 | E10: =VLOOKUP('Cost Comparison'!$B$6,Rates!$A$36:$W$67,5,0) -> FALSE | F10: 0 | G10: =VLOOKUP('Cost Comparison'!$B$6,Rates!$A$69:$W$100,5,0) -> FALSE | H10: 0
A11: Summer Part | B11: ='Cost Comparison'!H16 -> 0 | C11: =VLOOKUP('Cost Comparison'!$B$6,Rates!$A$2:$W$31,6,0) -> FALSE | D11: 0 | E11: =VLOOKUP('Cost Comparison'!$B$6,Rates!$A$36:$W$67,6,0) -> FALSE | F11: 0 | G11: =VLOOKUP('Cost Comparison'!$B$6,Rates!$A$69:$W$100,6,0) -> FALSE | H11: 0
A12: Summer Off | B12: ='Cost Comparison'!H17 -> 0 | C12: =VLOOKUP('Cost Comparison'!$B$6,Rates!$A$2:$W$31,7,0) -> FALSE | D12: 0 | E12: =VLOOKUP('Cost Comparison'!$B$6,Rates!$A$36:$W$67,7,0) -> FALSE | F12: 0 | G12: =VLOOKUP('Cost Comparison'!$B$6,Rates!$A$69:$W$100,7,0) -> FALSE | H12: 0
A13: Winter Peak | B13: ='Cost Comparison'!L15 -> 0 | C13: =VLOOKUP('Cost Comparison'!$B$6,Rates!$A$2:$W$31,8,0) -> FALSE | D13: 0 | E13: =VLOOKUP('Cost Comparison'!$B$6,Rates!$A$36:$W$67,8,0) -> FALSE | F13: 0 | G13: =VLOOKUP('Cost Comparison'!$B$6,Rates!$A$69:$W$100,8,0) -> FALSE | H13: 0
A14: Winter Part | B14: ='Cost Comparison'!L16 -> 0 | C14: =VLOOKUP('Cost Comparison'!$B$6,Rates!$A$2:$W$31,9,0) -> FALSE | D14: 0 | E14: =VLOOKUP('Cost Comparison'!$B$6,Rates!$A$36:$W$67,9,0) -> FALSE | F14: 0 | G14: =VLOOKUP('Cost Comparison'!$B$6,Rates!$A$69:$W$100,9,0) -> FALSE | H14: 0
A15: Winter Off | B15: ='Cost Comparison'!L17 -> 0 | C15: =VLOOKUP('Cost Comparison'!$B$6,Rates!$A$2:$W$31,10,0) -> FALSE | D15: 0 | E15: =VLOOKUP('Cost Comparison'!$B$6,Rates!$A$36:$W$67,10,0) -> FALSE | F15: 0 | G15: =VLOOKUP('Cost Comparison'!$B$6,Rates!$A$69:$W$100,10,0) -> FALSE | H15: 0
A16: Demand Summer Peak | B16: ='Cost Comparison'!H12 -> 0 | C16: =VLOOKUP('Cost Comparison'!$B$6,Rates!$A$2:$W$31,11,0) -> FALSE | D16: =IF(B16=0,0,B16*C16*'Cost Comparison'!$H$10/SUM('Cost Comparison'!H10+'Cost Comparison'!L10)) -> 0 | E16: =VLOOKUP('Cost Comparison'!$B$6,Rates!$A$36:$W$67,11,0) -> FALSE | F16: =IF(E16=FALSE,0,B16*E16*'Cost Comparison'!$H$10/SUM('Cost Comparison'!$H$10+'Cost Comparison'!$L$10)) -> 0 | G16: =VLOOKUP('Cost Comparison'!$B$6,Rates!$A$69:$W$100,11,0) -> FALSE | H16: =IF(G16=FALSE,0,B16*G16*'Cost Comparison'!$H$10/SUM('Cost Comparison'!$H$10+'Cost Comparison'!$L$10)) -> 0
A17: Demand Summer Part | B17: ='Cost Comparison'!H13 -> 0 | C17: =VLOOKUP('Cost Comparison'!$B$6,Rates!$A$2:$W$31,12,0) -> FALSE | D17: =IF(B17=0,0,B17*C17*'Cost Comparison'!H10/SUM('Cost Comparison'!H10+'Cost Comparison'!L10)) -> 0 | E17: =VLOOKUP('Cost Comparison'!$B$6,Rates!$A$36:$W$67,12,0) -> FALSE | F17: =IF(E17=FALSE,0,B17*E17*'Cost Comparison'!$H$10/SUM('Cost Comparison'!$H$10+'Cost Comparison'!$L$10)) -> 0 | G17: =VLOOKUP('Cost Comparison'!$B$6,Rates!$A$69:$W$100,12,0) -> FALSE | H17: =IF(G17=FALSE,0,B17*G17*'Cost Comparison'!$H$10/SUM('Cost Comparison'!$H$10+'Cost Comparison'!$L$10)) -> 0
A18: Demand Summer Max | B18: ='Cost Comparison'!H14 -> 0 | C18: =VLOOKUP('Cost Comparison'!$B$6,Rates!$A$2:$W$31,13,0) -> FALSE | D18: =IF(B18=0,0,B18*C18*'Cost Comparison'!H10/SUM('Cost Comparison'!H10+'Cost Comparison'!L10)) -> 0 | E18: =VLOOKUP('Cost Comparison'!$B$6,Rates!$A$36:$W$67,13,0) -> FALSE | F18: =IF(E18=FALSE,0,B18*E18*'Cost Comparison'!$H$10/SUM('Cost Comparison'!$H$10+'Cost Comparison'!$L$10)) -> 0 | G18: =VLOOKUP('Cost Comparison'!$B$6,Rates!$A$69:$W$100,13,0) -> FALSE | H18: =IF(G18=FALSE,0,B18*G18*'Cost Comparison'!$H$10/SUM('Cost Comparison'!$H$10+'Cost Comparison'!$L$10)) -> 0
A19: Demand Winter Peak | B19: ='Cost Comparison'!L12 -> 0 | C19: =VLOOKUP('Cost Comparison'!$B$6,Rates!$A$2:$W$31,14,0) -> FALSE | D19: =IF(B19=0,0,B19*C19*'Cost Comparison'!L10/SUM('Cost Comparison'!L10+'Cost Comparison'!H10)) -> 0 | E19: =VLOOKUP('Cost Comparison'!$B$6,Rates!$A$36:$W$67,14,0) -> FALSE | F19: =IF(E19=FALSE,0,B19*E19*'Cost Comparison'!$L$10/SUM('Cost Comparison'!$H$10+'Cost Comparison'!$L$10)) -> 0 | G19: =VLOOKUP('Cost Comparison'!$B$6,Rates!$A$69:$W$100,14,0) -> FALSE | H19: =IF(G19=FALSE,0,B19*G19*'Cost Comparison'!$L$10/SUM('Cost Comparison'!$H$10+'Cost Comparison'!$L$10)) -> 0
A20: Demand Winter Part | B20: ='Cost Comparison'!L13 -> 0 | C20: =VLOOKUP('Cost Comparison'!$B$6,Rates!$A$2:$W$31,15,0) -> FALSE | D20: =IF(B20=0,0,B20*C20*'Cost Comparison'!L10/SUM('Cost Comparison'!L10+'Cost Comparison'!H10)) -> 0 | E20: =VLOOKUP('Cost Comparison'!$B$6,Rates!$A$36:$W$67,15,0) -> FALSE | F20: =IF(E20=FALSE,0,B20*E20*'Cost Comparison'!$L$10/SUM('Cost Comparison'!$H$10+'Cost Comparison'!$L$10)) -> 0 | G20: =VLOOKUP('Cost Comparison'!$B$6,Rates!$A$69:$W$100,15,0) -> FALSE | H20: =IF(G20=FALSE,0,B20*G20*'Cost Comparison'!$L$10/SUM('Cost Comparison'!$H$10+'Cost Comparison'!$L$10)) -> 0
A21: Demand Winter Max | B21: ='Cost Comparison'!L14 -> 0 | C21: =VLOOKUP('Cost Comparison'!$B$6,Rates!$A$2:$W$31,16,0) -> FALSE | D21: =IF(B21=0,0,B21*C21*'Cost Comparison'!L10/SUM('Cost Comparison'!L10+'Cost Comparison'!H10)) -> 0 | E21: =VLOOKUP('Cost Comparison'!$B$6,Rates!$A$36:$W$67,16,0) -> FALSE | F21: =IF(E21=FALSE,0,B21*E21*'Cost Comparison'!$L$10/SUM('Cost Comparison'!$H$10+'Cost Comparison'!$L$10)) -> 0 | G21: =VLOOKUP('Cost Comparison'!$B$6,Rates!$A$69:$W$100,16,0) -> FALSE | H21: =IF(G21=FALSE,0,B21*G21*'Cost Comparison'!$L$10/SUM('Cost Comparison'!$H$10+'Cost Comparison'!$L$10)) -> 0
A22: Conn. Load Summer | B22: ='Cost Comparison'!D14 -> 0 | C22: =VLOOKUP('Cost Comparison'!$B$6,Rates!$A$2:$W$31,17,0) -> FALSE | D22: 0 | E22: =VLOOKUP('Cost Comparison'!$B$6,Rates!$A$36:$W$67,17,0) -> FALSE | F22: 0 | G22: =VLOOKUP('Cost Comparison'!$B$6,Rates!$A$69:$W$100,17,0) -> FALSE | H22: 0
A23: Conn. Load Winter | B23: ='Cost Comparison'!D15 -> 0 | C23: =VLOOKUP('Cost Comparison'!$B$6,Rates!$A$2:$W$31,18,0) -> FALSE | D23: 0 | E23: =VLOOKUP('Cost Comparison'!$B$6,Rates!$A$36:$W$67,18,0) -> FALSE | F23: 0 | G23: =VLOOKUP('Cost Comparison'!$B$6,Rates!$A$69:$W$100,18,0) -> FALSE | H23: 0
A24: =Rates!S2 -> Single-phase | B24: =IF(A24='Cost Comparison'!$R$13,SUM('Cost Comparison'!$L$10+'Cost Comparison'!$H$10,0)) -> 0 | C24: =VLOOKUP('Cost Comparison'!$B$6,Rates!$A$2:$W$31,19,0) -> 0.32854 | D24: 0
A25: =Rates!T2 -> Poly-phase | B25: =IF(A25='Cost Comparison'!$R$13,'Cost Comparison'!$R$10,0) -> 0 | C25: =VLOOKUP('Cost Comparison'!$B$6,Rates!$A$2:$W$31,20,0) -> 0.65708 | D25: 0
A26: Voluntary | B26: =IF(E2="E19",IF('Cost Comparison'!R16="Voluntary",'Cost Comparison'!H10+'Cost Comparison'!L10,0),0) -> 0 | C26: =VLOOKUP('Cost Comparison'!$B$6,Rates!$A$2:$W$31,21,0) -> FALSE | D26: 0
A27: Mandatory | B27: =IF(E2="E19",IF('Cost Comparison'!R16="Mandatory",'Cost Comparison'!R10,0),0) -> 0 | C27: =VLOOKUP('Cost Comparison'!$B$6,Rates!$A$2:$W$31,22,0) -> FALSE | D27: 0
A28: Total | D28: =SUM(D7:D27) -> 0 | F28: =SUM(F7:F25) -> 0 | H28: =SUM(H7:H25) -> 0
A30: Raw Total | B30: =D28 -> 0
A31: CARE Discount | B31: =SUM(CARE!D3:D7) -> 0
A32: PG&E Bundled Total | B32: =B30-B31 -> 0 | E32: GreenPrime Rate | F32: 0.008
A33: PG&E Gen | B33: =F28 -> 0
A34: PG&E T&D | B34: =B32-B33 -> 0
A35: SVCEA Gen Only | B35: =H28 -> 0
A36: SVCEA NEM Bonus | B36: =F37*F32 -> 0
A37: SVCEA Gen | B37: =SUM(B35:B36) -> 0 | E37: Eligible NEM Bonus Usage | F37: =SUMIFS(B8:B15,B8:B15,"<0",C8:C15,"<>FALSE") -> 0
A38: PCIA | B38: =H1 -> 0
A39: FF | B39: =H3 -> 0
A40: Solar Choice Premium | B40: =E3*VLOOKUP(E2,'PCIA FF'!A27:B36,2,FALSE) -> 0
A41: Solar Choice PCIA | B41: =VLOOKUP(Calculation!E2,'PCIA FF'!A1:U11,MATCH('Cost Comparison'!R11,'PCIA FF'!1:1,0),FALSE)*E3 -> 0
A42: … without PCIA | B42: =B40-B41 -> 0
A43: Deep Green Premium | B43: =E3*F32 -> 0
A44: Local Sol Gen Rate | B44: =SUM(E3*F33,H16:H23) -> 0

Sheet Rates (hidden)
A1: Bundled Charges | C1: Flat Rate Options | E1: TOU Rate Options | K1: Demand Charges | S1: Per Meter/Day
A2: Rate Schedules | B2: All Usage | C2: Summer | D2: Winter | E2: Summer Peak | F2: Summer Partial Peak | G2: Summer Off Peak | H2: Winter Peak | I2: Winter Partial Peak | J2: Winter Off Peak | K2: Summer Peak | L2: Summer Partial Peak | M2: Summer Maximum | N2: Winter Off Peak | O2: Winter Partial | P2: Winter Maximum | Q2: Conn. Load Sum. | R2: Conn. Load Win. | S2: Single-phase | T2: Poly-phase | U2: Voluntary | V2: Mandatory
A3: A1 (COM-1) | B3: FALSE | C3: 0.25386 | D3: 0.1967 | E3: FALSE | F3: FALSE | G3: FALSE | H3: FALSE | I3: FALSE | J3: FALSE | K3: FALSE | L3: FALSE | M3: FALSE | N3: FALSE | O3: FALSE | P3: FALSE | Q3: FALSE | R3: FALSE | S3: 0.32854 | T3: 0.65708 | U3: FALSE | V3: FALSE
A4: A1X (COM-1 TOU) | B4: FALSE | C4: FALSE | D4: FALSE | E4: 0.268 | F4: 0.24435 | G4: 0.217 | H4: FALSE | I4: 0.22622 | J4: 0.2053 | K4: FALSE | L4: FALSE | M4: FALSE | N4: FALSE | O4: FALSE | P4: FALSE | Q4: FALSE | R4: FALSE | S4: =S3 -> 0.32854 | T4: =T3 -> 0.65708 | U4: FALSE | V4: FALSE
A5: A6 (COM-6) | B5: FALSE | C5: FALSE | D5: FALSE | E5: 0.56478 | F5: 0.26796 | G5: 0.19637 | H5: FALSE | I5: 0.21389 | J5: 0.19565 | K5: FALSE | L5: FALSE | M5: FALSE | N5: FALSE | O5: FALSE | P5: FALSE | Q5: FALSE | R5: FALSE | S5: =S3 -> 0.32854 | T5: =T3 -> 0.65708 | U5: FALSE | V5: FALSE
A6: A10A (COM-10) | B6: FALSE | C6: 0.16949 | D6: 0.13075 | E6: FALSE | F6: FALSE | G6: FALSE | H6: FALSE | I6: FALSE | J6: FALSE | K6: FALSE | L6: FALSE | M6: 19.52 | N6: FALSE | O6: FALSE | P6: 11.76 | Q6: FALSE | R6: FALSE | S6: 4.59959 | T6: =S6 -> 4.59959 | U6: FALSE | V6: FALSE
A7: A10B (COM-10-TOU) | B7: FALSE | C7: FALSE | D7: FALSE | E7: 0.22337 | F7: 0.16824 | G7: 0.14017 | H7: FALSE | I7: 0.14054 | J7: 0.12347 | K7: FALSE | L7: FALSE | M7: =M6 -> 19.52 | N7: FALSE | O7: FALSE | P7: =P6 -> 11.76 | Q7: FALSE | R7: FALSE | S7: =S6 -> 4.59959 | T7: =T6 -> 4.59959 | U7: FALSE | V7: FALSE
A8: E19S (COM-19S) | B8: FALSE | C8: FALSE | D8: FALSE | E8: 0.16055 | F8: 0.11613 | G8: 0.08671 | H8: FALSE | I8: 0.11004 | J8: 0.09401 | K8: 19.65 | L8: 5.4 | M8: 17.74 | N8: FALSE | O8: 0.12 | P8: 17.74 | Q8: FALSE | R8: FALSE | S8: FALSE | T8: FALSE | U8: =S6 -> 4.59959 | V8: 19.71253
A9: E19P (COM-19P) | B9: FALSE | C9: FALSE | D9: FALSE | E9: 0.14944 | F9: 0.10739 | G9: 0.08036 | H9: FALSE | I9: 0.10171 | J9: 0.08704 | K9: 17.49 | L9: 4.72 | M9: 14.7 | N9: FALSE | O9: 0.14 | P9: 14.7 | Q9: FALSE | R9: FALSE | S9: FALSE | T9: FALSE | U9: =U8 -> 4.59959 | V9: =V8 -> 19.71253
A10: E19T (COM-19T) | B10: FALSE | C10: FALSE | D10: FALSE | E10: 0.11286 | F10: 0.09859 | G10: 0.0797 | H10: FALSE | I10: 0.10083 | J10: 0.08632 | K10: 14.06 | L10: 3.53 | M10: 9.56 | N10: FALSE | O10: 0 | P10: 9.56 | Q10: FALSE | R10: FALSE | S10: FALSE | T10: FALSE | U10: =U7 -> FALSE | V10: =V7 -> FALSE
A11: E19SR (COM-19SR) | B11: FALSE | C11: FALSE | D11: FALSE | E11: 0.36095 | F11: 0.16677 | G11: 0.08671 | H11: FALSE | I11: 0.11052 | J11: 0.09401 | K11: 1.45 | L11: 0.5 | M11: 17.74 | N11: FALSE | O11: 0.03 | P11: 17.74 | Q11: FALSE | R11: FALSE | S11: FALSE | T11: FALSE | U11: =U8 -> 4.59959 | V11: =V8 -> 19.71253
A12: E20S (COM-20S) | B12: FALSE | C12: FALSE | D12: FALSE | E12: 0.15018 | F12: 0.10981 | G12: 0.0821 | H12: FALSE | I12: 0.10395 | J12: 0.08893 | K12: 19.02 | L12: 5.23 | M12: 17.87 | N12: FALSE | O12: 0.05 | P12: 17.87 | Q12: FALSE | R12: FALSE | S12: 39.42505 | T12: =S12 -> 39.42505 | U12: FALSE | V12: FALSE
A13: E20P (COM-20P) | B13: FALSE | C13: FALSE | D13: FALSE | E13: 0.14436 | F13: 0.10374 | G13: 0.07876 | H13: FALSE | I13: 0.09839 | J13: 0.0849 | K13: 19.26 | L13: 5.13 | M13: 15.1 | N13: FALSE | O13: 0.12 | P13: 15.1 | Q13: FALSE | R13: FALSE | S13: 49.28131 | T13: =S13 -> 49.28131 | U13: FALSE | V13: FALSE
A14: E20T (COM-20T) | B14: FALSE | C14: FALSE | D14: FALSE | E14: 0.10123 | F14: 0.089 | G14: 0.07281 | H14: FALSE | I14: 0.09092 | J14: 0.07849 | K14: 15.89 | L14: 3.79 | M14: 8.32 | N14: FALSE | O14: 0 | P14: 8.32 | Q14: FALSE | R14: FALSE | S14: 65.70842 | T14: 65.70842 | U14: FALSE | V14: FALSE
A15: E20SR (COM-20SR) | B15: FALSE | C15: FALSE | D15: FALSE | E15: 0.3304 | F15: 0.015704 | G15: 0.0821 | H15: FALSE | I15: 0.10414 | J15: 0.08893 | K15: 1.4 | L15: 0.48 | M15: 17.87 | N15: FALSE | O15: 0.01 | P15: 17.87 | Q15: FALSE | R15: FALSE | S15: =S12 -> 39.42505 | T15: 39.42505 | U15: FALSE | V15: FALSE
A16: E20PR (COM-20PR) | B16: FALSE | C16: FALSE | D16: FALSE | E16: 0.34638 | F16: 0.15391 | G16: 0.08012 | H16: FALSE | I16: 0.10209 | J16: 0.08684 | K16: 1.41 | L16: 0.47 | M16: 15.61 | N16: FALSE | O16: 0.03 | P16: 15.61 | Q16: FALSE | R16: FALSE | S16: =S13 -> 49.28131 | T16: 49.28131 | U16: FALSE | V16: FALSE
A17: E20TR (COM-20TR) | B17: FALSE | C17: FALSE | D17: FALSE | E17: 0.29314 | F17: 0.13145 | G17: 0.07386 | H17: FALSE | I17: 0.09372 | J17: 0.08008 | K17: 0 | L17: 0 | M17: 9.07 | N17: FALSE | O17: FALSE | P17: 9.07 | Q17: FALSE | R17: FALSE | S17: 65.70842 | T17: 65.70842 | U17: FALSE | V17: FALSE
A18: LS-1, LS-2, LS-3 (SL-1) | B18: 0.16451 | C18: FALSE | D18: FALSE | E18: FALSE | F18: FALSE | G18: FALSE | H18: FALSE | I18: FALSE | J18: FALSE | K18: FALSE | L18: FALSE | M18: FALSE | N18: FALSE | O18: FALSE | P18: FALSE | Q18: FALSE | R18: FALSE | S18: FALSE | T18: FALSE | U18: FALSE | V18: FALSE
A19: TC-1 | B19: 0.18945 | C19: FALSE | D19: FALSE | E19: FALSE | F19: FALSE | G19: FALSE | H19: FALSE | I19: FALSE | J19: FALSE | K19: FALSE | L19: FALSE | M19: FALSE | N19: FALSE | O19: FALSE | P19: FALSE | Q19: FALSE | R19: FALSE | S19: 0.32854 | T19: 0.32854 | U19: FALSE | V19: FALSE
A20: AG-1A | B20: FALSE | C20: 0.2827 | D20: 0.21839 | E20: FALSE | F20: FALSE | G20: FALSE | H20: FALSE | I20: FALSE | J20: FALSE | K20: FALSE | L20: FALSE | M20: FALSE | N20: FALSE | O20: FALSE | P20: FALSE | Q20: 7.84 | R20: 1.46 | S20: 0.574 | T20: =S20 -> 0.574 | U20: FALSE | V20: FALSE
A21: AG-1B | B21: FALSE | C21: 0.24444 | D21: 0.19035 | E21: FALSE | F21: FALSE | G21: FALSE | H21: FALSE | I21: FALSE | J21: FALSE | K21: FALSE | L21: FALSE | M21: 11.5 | N21: FALSE | O21: FALSE | P21: 2.26 | Q21: FALSE | R21: FALSE | S21: 0.76313 | T21: =S21 -> 0.76313 | U21: FALSE | V21: FALSE
A22: AG-4A | B22: FALSE | C22: FALSE | D22: FALSE | E22: 0.45041 | F22: FALSE | G22: 0.19766 | H22: FALSE | I22: 0.20472 | J22: 0.16644 | K22: FALSE | L22: FALSE | M22: FALSE | N22: FALSE | O22: FALSE | P22: FALSE | Q22: 8.02 | R22: 1.18 | S22: =0.574+0.22341 -> 0.79741 | T22: =S22 -> 0.79741 | U22: FALSE | V22: FALSE
A23: AG-4B | B23: FALSE | C23: FALSE | D23: FALSE | E23: 0.29802 | F23: FALSE | G23: 0.16173 | H23: FALSE | I23: 0.16188 | J23: 0.13657 | K23: 5.33 | L23: FALSE | M23: 9.79 | N23: FALSE | O23: FALSE | P23: 2.19 | Q23: FALSE | R23: FALSE | S23: =0.76313+0.19713 -> 0.96026 | T23: 0.96026 | U23: FALSE | V23: FALSE
A24: AG-4C | B24: FALSE | C24: FALSE | D24: FALSE | E24: 0.27624 | F24: 0.16255 | G24: 0.1227 | H24: FALSE | I24: 0.13567 | J24: 0.11797 | K24: 12.46 | L24: 2.36 | M24: 4.77 | N24: FALSE | O24: 0.52 | P24: 2.3 | Q24: FALSE | R24: FALSE | S24: =2.15003+0.19713 -> 2.34716 | T24: 2.34716 | U24: FALSE | V24: FALSE
A25: AG-5A, AG-5D | B25: FALSE | C25: FALSE | D25: FALSE | E25: 0.31641 | F25: FALSE | G25: 0.16211 | H25: FALSE | I25: 0.17058 | J25: 0.14462 | K25: FALSE | L25: FALSE | M25: FALSE | N25: FALSE | O25: FALSE | P25: FALSE | Q25: 11.82 | R25: 2.11 | S25: =S22 -> 0.79741 | T25: 0.79741 | U25: FALSE | V25: FALSE
A26: AG-5B, AG-5E | B26: FALSE | C26: FALSE | D26: FALSE | E26: 0.22184 | F26: FALSE | G26: 0.09543 | H26: FALSE | I26: 0.11743 | J26: 0.08633 | K26: 10.23 | L26: FALSE | M26: 15.41 | N26: FALSE | O26: FALSE | P26: 5.75 | Q26: FALSE | R26: FALSE | S26: =1.19446+0.19713 -> 1.39159 | T26: 1.39159 | U26: FALSE | V26: FALSE
A27: AG-5C, AG-5F | B27: FALSE | C27: FALSE | D27: FALSE | E27: 0.17333 | F27: 0.11762 | G27: 0.09688 | H27: FALSE | I27: 0.10309 | J27: 0.09367 | K27: 17.43 | L27: 3.59 | M27: 5.74 | N27: FALSE | O27: 0.85 | P27: 3.58 | Q27: FALSE | R27: FALSE | S27: =5.30871+0.19713 -> 5.50584 | T27: 5.50584 | U27: FALSE | V27: FALSE
A28: AG-RA | B28: FALSE | C28: FALSE | D28: FALSE | E28: 0.54358 | F28: FALSE | G28: 0.18776 | H28: FALSE | I28: 0.19216 | J28: 0.15835 | K28: FALSE | L28: FALSE | M28: FALSE | N28: FALSE | O28: FALSE | P28: FALSE | Q28: 6.99 | R28: 1.12 | S28: =S22 -> 0.79741 | T28: 0.79741 | U28: FALSE | V28: FALSE
A29: AG-RB | B29: FALSE | C29: FALSE | D29: FALSE | E29: 0.49019 | F29: FALSE | G29: 0.17792 | H29: FALSE | I29: 0.16689 | J29: 0.13837 | K29: 3.84 | L29: FALSE | M29: 9.51 | N29: FALSE | O29: FALSE | P29: 1.86 | Q29: FALSE | R29: FALSE | S29: =S23 -> 0.96026 | T29: 0.96026 | U29: FALSE | V29: FALSE
A30: AG-VA | B30: FALSE | C30: FALSE | D30: FALSE | E30: 0.50573 | F30: FALSE | G30: 0.18434 | H30: FALSE | I30: 0.19314 | J30: 0.15867 | K30: FALSE | L30: FALSE | M30: FALSE | N30: FALSE | O30: FALSE | P30: FALSE | Q30: 7.02 | R30: 1.16 | S30: =S28 -> 0.79741 | T30: 0.79741 | U30: FALSE | V30: FALSE
A31: AG-VB | B31: FALSE | C31: FALSE | D31: FALSE | E31: 0.45343 | F31: FALSE | G31: 0.173 | H31: FALSE | I31: 0.16437 | J31: 0.13677 | K31: 3.83 | L31: FALSE | M31: 9.55 | N31: FALSE | O31: FALSE | P31: 1.84 | Q31: FALSE | R31: FALSE | S31: =S29 -> 0.96026 | T31: =T29 -> 0.96026 | U31: FALSE | V31: FALSE
A35: PG&E Generation | C35: Flat Rate Options | E35: TOU Rate Options | K35: Demand Charges
A36: Rate Schedules | B36: =B2 -> All Usage | C36: Summer | D36: Winter | E36: Summer Peak | F36: Summer Partial Peak | G36: Summer Off Peak | H36: Winter Peak | I36: Winter Partial Peak | J36: Winter Off Peak | K36: Summer Peak | L36: Summer Partial Peak | M36: Summer Maximum | N36: Winter Off Peak | O36: Winter Partial | P36: Winter Maximum | Q36: Conn. Load Sum. | R36: Conn. Load Win.
A37: =A3 -> A1 (COM-1) | B37: FALSE | C37: 0.1257 | D37: 0.08648 | E37: FALSE | F37: FALSE | G37: FALSE | H37: FALSE | I37: FALSE | J37: FALSE | K37: FALSE | L37: FALSE | M37: FALSE | N37: FALSE | O37: FALSE | P37: FALSE | Q37: FALSE | R37: FALSE
A38: A1X (COM-1 TOU) | B38: FALSE | C38: FALSE | D38: FALSE | E38: 0.13984 | F38: 0.11619 | G38: 0.08884 | H38: FALSE | I38: 0.116 | J38: 0.09508 | K38: FALSE | L38: FALSE | M38: FALSE | N38: FALSE | O38: FALSE | P38: FALSE | Q38: FALSE | R38: FALSE
A39: A6 (COM-6) | B39: FALSE | C39: FALSE | D39: FALSE | E39: 0.37744 | F39: 0.13786 | G39: 0.07957 | H39: FALSE | I39: 0.10503 | J39: 0.08754 | K39: FALSE | L39: FALSE | M39: FALSE | N39: FALSE | O39: FALSE | P39: FALSE | Q39: FALSE | R39: FALSE
A40: A10A (COM-10) | B40: FALSE | C40: 0.11614 | D40: 0.08916 | E40: FALSE | F40: FALSE | G40: FALSE | H40: FALSE | I40: FALSE | J40: FALSE | K40: FALSE | L40: FALSE | M40: 5.41 | N40: FALSE | O40: FALSE | P40: FALSE | Q40: FALSE | R40: FALSE
A41: A10B (COM-10-TOU) | B41: FALSE | C41: FALSE | D41: FALSE | E41: 0.17002 | F41: 0.11489 | G41: 0.08682 | H41: FALSE | I41: 0.09895 | J41: 0.08188 | K41: FALSE | L41: FALSE | M41: =M40 -> 5.41 | N41: FALSE | O41: FALSE | P41: FALSE | Q41: FALSE | R41: FALSE
A42: E19S (COM-19S) | B42: FALSE | C42: FALSE | D42: FALSE | E42: 0.13766 | F42: 0.09324 | G42: 0.06382 | H42: FALSE | I42: 0.08715 | J42: 0.07112 | K42: 13.86 | L42: 3.42 | M42: FALSE | N42: FALSE | O42: FALSE | P42: FALSE | Q42: FALSE | R42: FALSE
A43: E19P (COM-19P) | B43: FALSE | C43: FALSE | D43: FALSE | E43: 0.12751 | F43: 0.08546 | G43: 0.05843 | H43: FALSE | I43: 0.07978 | J43: 0.06511 | K43: 12.37 | L43: 3.01 | M43: FALSE | N43: FALSE | O43: FALSE | P43: FALSE | Q43: FALSE | R43: FALSE
A44: E19T (COM-19T) | B44: FALSE | C44: FALSE | D44: FALSE | E44: 0.09096 | F44: 0.07669 | G44: 0.0578 | H44: FALSE | I44: 0.07893 | J44: 0.06442 | K44: 14.06 | L44: 3.53 | M44: FALSE | N44: FALSE | O44: FALSE | P44: FALSE | Q44: FALSE | R44: FALSE
A45: =A11 -> E19SR (COM-19SR) | B45: FALSE | C45: FALSE | D45: FALSE | E45: 0.29098 | F45: 0.12891 | G45: 0.06382 | H45: FALSE | I45: 0.08715 | J45: 0.07112 | K45: FALSE | L45: FALSE | M45: FALSE | N45: FALSE | O45: FALSE | P45: FALSE | Q45: FALSE | R45: FALSE
A46: E20S (COM-20S) | B46: FALSE | C46: FALSE | D46: FALSE | E46: 0.12784 | F46: 0.08747 | G46: 0.05976 | H46: FALSE | I46: 0.08161 | J46: 0.06659 | K46: 13.41 | L46: 3.31 | M46: FALSE | N46: FALSE | O46: FALSE | P46: FALSE | Q46: FALSE | R46: FALSE
A47: E20P (COM-20P) | B47: FALSE | C47: FALSE | D47: FALSE | E47: 0.13073 | F47: 0.08623 | G47: 0.05886 | H47: FALSE | I47: 0.08037 | J47: 0.06558 | K47: 14.72 | L47: 3.48 | M47: FALSE | N47: FALSE | O47: FALSE | P47: FALSE | Q47: FALSE | R47: FALSE
A48: E20T (COM-20T) | B48: FALSE | C48: FALSE | D48: FALSE | E48: 0.0855 | F48: 0.07209 | G48: 0.05434 | H48: FALSE | I48: 0.0742 | J48: 0.06056 | K48: 17.42 | L48: 4.15 | M48: FALSE | N48: FALSE | O48: FALSE | P48: FALSE | Q48: FALSE | R48: FALSE
A49: E20SR (COM-20SR) | B49: FALSE | C49: FALSE | D49: FALSE | E49: 0.26514 | F49: 0.12067 | G49: 0.05976 | H49: FALSE | I49: 0.08161 | J49: 0.06659 | K49: FALSE | L49: FALSE | M49: FALSE | N49: FALSE | O49: FALSE | P49: FALSE | Q49: FALSE | R49: FALSE
A50: E20PR (COM-20PR) | B50: FALSE | C50: FALSE | D50: FALSE | E50: 0.28229 | F50: 0.11956 | G50: 0.05886 | H50: FALSE | I50: 0.08037 | J50: 0.06558 | K50: FALSE | L50: FALSE | M50: FALSE | N50: FALSE | O50: FALSE | P50: FALSE | Q50: FALSE | R50: FALSE
A51: E20TR (COM-20TR) | B51: FALSE | C51: FALSE | D51: FALSE | E51: 0.27362 | F51: 0.11193 | G51: 0.05434 | H51: FALSE | I51: 0.0742 | J51: 0.06056 | K51: FALSE | L51: FALSE | M51: FALSE | N51: FALSE | O51: FALSE | P51: FALSE | Q51: FALSE | R51: FALSE
A52: LS-1, LS-2, LS-3 (SL-1) | B52: 0.08753 | C52: FALSE | D52: FALSE | E52: FALSE | F52: FALSE | G52: FALSE | H52: FALSE | I52: FALSE | J52: FALSE | K52: FALSE | L52: FALSE | M52: FALSE | N52: FALSE | O52: FALSE | P52: FALSE | Q52: FALSE | R52: FALSE
A53: TC-1 | B53: 0.09504 | C53: FALSE | D53: FALSE | E53: FALSE | F53: FALSE | G53: FALSE | H53: FALSE | I53: FALSE | J53: FALSE | K53: FALSE | L53: FALSE | M53: FALSE | N53: FALSE | O53: FALSE | P53: FALSE | Q53: FALSE | R53: FALSE
A54: AG-1A | B54: FALSE | C54: 0.10874 | D54: 0.08721 | E54: FALSE | F54: FALSE | G54: FALSE | H54: FALSE | I54: FALSE | J54: FALSE | K54: FALSE | L54: FALSE | M54: FALSE | N54: FALSE | O54: FALSE | P54: FALSE | Q54: 1.49 | R54: FALSE
A55: AG-1B | B55: FALSE | C55: 0.11198 | D55: 0.08729 | E55: FALSE | F55: FALSE | G55: FALSE | H55: FALSE | I55: FALSE | J55: FALSE | K55: FALSE | L55: FALSE | M55: 2.24 | N55: FALSE | O55: FALSE | P55: FALSE | Q55: FALSE | R55: FALSE
A56: AG-4A | B56: FALSE | C56: FALSE | D56: FALSE | E56: 0.17399 | F56: FALSE | G56: 0.07511 | H56: FALSE | I56: 0.0796 | J56: 0.06782 | K56: FALSE | L56: FALSE | M56: FALSE | N56: FALSE | O56: FALSE | P56: FALSE | Q56: 1.48 | R56: FALSE
A57: AG-4B | B57: FALSE | C57: FALSE | D57: FALSE | E57: 0.13325 | F57: FALSE | G57: 0.07734 | H57: FALSE | I57: 0.07542 | J57: 0.06417 | K57: 2.78 | L57: FALSE | M57: 2.62 | N57: FALSE | O57: FALSE | P57: FALSE | Q57: FALSE | R57: FALSE
A58: AG-4C | B58: FALSE | C58: FALSE | D58: FALSE | E58: 0.15377 | F58: 0.08705 | G58: 0.06281 | H58: FALSE | I58: 0.06969 | J58: 0.05928 | K58: 6.45 | L58: 1.1 | M58: FALSE | N58: FALSE | O58: FALSE | P58: FALSE | Q58: FALSE | R58: FALSE
A59: AG-5A, AG-5D | B59: FALSE | C59: FALSE | D59: FALSE | E59: 0.16283 | F59: FALSE | G59: 0.08051 | H59: FALSE | I59: 0.08432 | J59: 0.07191 | K59: FALSE | L59: FALSE | M59: FALSE | N59: FALSE | O59: FALSE | P59: FALSE | Q59: 4.05 | R59: FALSE
A60: AG-5B, AG-5E | B60: FALSE | C60: FALSE | D60: FALSE | E60: 0.15904 | F60: FALSE | G60: 0.05347 | H60: FALSE | I60: 0.07547 | J60: 0.04437 | K60: 6.1 | L60: FALSE | M60: 4.87 | N60: FALSE | O60: FALSE | P60: FALSE | Q60: FALSE | R60: FALSE
A61: AG-5C, AG-5F | B61: FALSE | C61: FALSE | D61: FALSE | E61: 0.13183 | F61: 0.07612 | G61: 0.05538 | H61: FALSE | I61: 0.06159 | J61: 0.05217 | K61: 11.31 | L61: 2.13 | M61: FALSE | N61: FALSE | O61: FALSE | P61: FALSE | Q61: FALSE | R61: FALSE
A62: AG-RA | B62: FALSE | C62: FALSE | D62: FALSE | E62: 0.29269 | F62: FALSE | G62: 0.07372 | H62: FALSE | I62: 0.08152 | J62: 0.06939 | K62: FALSE | L62: FALSE | M62: FALSE | N62: FALSE | O62: FALSE | P62: FALSE | Q62: 1.44 | R62: FALSE
A63: AG-RB | B63: FALSE | C63: FALSE | D63: FALSE | E63: 0.26432 | F63: FALSE | G63: 0.07317 | H63: FALSE | I63: 0.06713 | J63: 0.05717 | K63: 2.39 | L63: FALSE | M63: 2.13 | N63: FALSE | O63: FALSE | P63: FALSE | Q63: FALSE | R63: FALSE
A64: AG-VA | B64: FALSE | C64: FALSE | D64: FALSE | E64: 0.2561 | F64: FALSE | G64: 0.07074 | H64: FALSE | I64: 0.07985 | J64: 0.06797 | K64: FALSE | L64: FALSE | M64: FALSE | N64: FALSE | O64: FALSE | P64: FALSE | Q64: 1.5 | R64: FALSE
A65: AG-VB | B65: FALSE | C65: FALSE | D65: FALSE | E65: 0.23649 | F65: FALSE | G65: 0.07118 | H65: FALSE | I65: 0.06738 | J65: 0.05737 | K65: 2.51 | L65: FALSE | M65: 1.95 | N65: FALSE | O65: FALSE | P65: FALSE | Q65: FALSE | R65: FALSE
A68: SVCEA Generation | C68: Flat Rate Options | E68: TOU Rate Options | K68: Demand Charges
A69: Rate Schedules | B69: =B2 -> All Usage | C69: Summer | D69: Winter | E69: Summer Peak | F69: Summer Partial Peak | G69: Summer Off Peak | H69: Winter Peak | I69: Winter Partial Peak | J69: Winter Off Peak | K69: Summer Peak | L69: Summer Partial Peak | M69: Summer Maximum | N69: Winter Off Peak | O69: Winter Partial | P69: Winter Maximum | Q69: Conn. Load Sum. | R69: Conn. Load Win. | S69: PCIA Mapping
A70: =A37 -> A1 (COM-1) | B70: FALSE | C70: 0.09288 | D70: 0.05601 | E70: FALSE | F70: FALSE | G70: FALSE | H70: FALSE | I70: FALSE | J70: FALSE | K70: FALSE | L70: FALSE | M70: FALSE | N70: FALSE | O70: FALSE | P70: FALSE | Q70: FALSE | R70: FALSE | S70: ='PCIA FF'!$A$3 -> A1
A71: A1X (COM-1 TOU) | B71: FALSE | C71: FALSE | D71: FALSE | E71: 0.10617 | F71: 0.08394 | G71: 0.05823 | H71: FALSE | I71: 0.08376 | J71: 0.0641 | K71: FALSE | L71: FALSE | M71: FALSE | N71: FALSE | O71: FALSE | P71: FALSE | Q71: FALSE | R71: FALSE | S71: ='PCIA FF'!$A$3 -> A1
A72: A6 (COM-6) | B72: FALSE | C72: FALSE | D72: FALSE | E72: 0.32951 | F72: 0.10431 | G72: 0.04952 | H72: FALSE | I72: 0.07345 | J72: 0.05701 | K72: FALSE | L72: FALSE | M72: FALSE | N72: FALSE | O72: FALSE | P72: FALSE | Q72: FALSE | R72: FALSE | S72: ='PCIA FF'!$A$3 -> A1
A73: A10A (COM-10) | B73: FALSE | C73: 0.08349 | D73: 0.05813 | E73: FALSE | F73: FALSE | G73: FALSE | H73: FALSE | I73: FALSE | J73: FALSE | K73: FALSE | L73: FALSE | M73: 5.09 | N73: FALSE | O73: FALSE | P73: FALSE | Q73: FALSE | R73: FALSE | S73: ='PCIA FF'!$A$4 -> A10
A74: A10B (COM-10-TOU) | B74: FALSE | C74: FALSE | D74: FALSE | E74: 0.13414 | F74: 0.08232 | G74: 0.05593 | H74: FALSE | I74: 0.06733 | J74: 0.05129 | K74: FALSE | L74: FALSE | M74: 5.09 | N74: FALSE | O74: FALSE | P74: FALSE | Q74: FALSE | R74: FALSE | S74: ='PCIA FF'!$A$4 -> A10
A75: E19S (COM-19S) | B75: FALSE | C75: FALSE | D75: FALSE | E75: 0.10775 | F75: 0.066 | G75: 0.03834 | H75: FALSE | I75: 0.06027 | J75: 0.0452 | K75: 13.03 | L75: 3.21 | M75: FALSE | N75: FALSE | O75: FALSE | P75: FALSE | Q75: FALSE | R75: FALSE | S75: E19
A76: E19P (COM-19P) | B76: FALSE | C76: FALSE | D76: FALSE | E76: 0.09821 | F76: 0.05868 | G76: 0.03327 | H76: FALSE | I76: 0.05334 | J76: 0.03955 | K76: 11.63 | L76: 2.83 | M76: FALSE | N76: FALSE | O76: FALSE | P76: FALSE | Q76: FALSE | R76: FALSE | S76: E19
A77: E19T (COM-19T) | B77: FALSE | C77: FALSE | D77: FALSE | E77: 0.06385 | F77: 0.05044 | G77: 0.03268 | H77: FALSE | I77: 0.05254 | J77: 0.0389 | K77: 13.22 | L77: 3.32 | M77: FALSE | N77: FALSE | O77: FALSE | P77: FALSE | Q77: FALSE | R77: FALSE | S77: E19
A78: =A45 -> E19SR (COM-19SR) | B78: FALSE | C78: FALSE | D78: FALSE | E78: 0.25187 | F78: 0.09953 | G78: 0.03834 | H78: FALSE | I78: 0.06027 | J78: 0.0452 | K78: FALSE | L78: FALSE | M78: FALSE | N78: FALSE | O78: FALSE | P78: FALSE | Q78: FALSE | R78: FALSE | S78: E19
A79: E20S (COM-20S) | B79: FALSE | C79: FALSE | D79: FALSE | E79: 0.09934 | F79: 0.06139 | G79: 0.03534 | H79: FALSE | I79: 0.05588 | J79: 0.04176 | K79: 12.61 | L79: 3.11 | M79: FALSE | N79: FALSE | O79: FALSE | P79: FALSE | Q79: FALSE | R79: FALSE | S79: ='PCIA FF'!A11 -> E20S
A80: E20P (COM-20P) | B80: FALSE | C80: FALSE | D80: FALSE | E80: 0.10345 | F80: 0.06162 | G80: 0.03589 | H80: FALSE | I80: 0.05611 | J80: 0.04221 | K80: 13.84 | L80: 3.27 | M80: FALSE | N80: FALSE | O80: FALSE | P80: FALSE | Q80: FALSE | R80: FALSE | S80: ='PCIA FF'!A10 -> E20P
A81: E20T (COM-20T) | B81: FALSE | C81: FALSE | D81: FALSE | E81: 0.06251 | F81: 0.0499 | G81: 0.03322 | H81: FALSE | I81: 0.05189 | J81: 0.03907 | K81: 16.37 | L81: 3.9 | M81: FALSE | N81: FALSE | O81: FALSE | P81: FALSE | Q81: FALSE | R81: FALSE | S81: ='PCIA FF'!A9 -> E20T
A82: E20SR (COM-20SR) | B82: FALSE | C82: FALSE | D82: FALSE | E82: 0.2284 | F82: 0.0926 | G82: 0.03534 | H82: FALSE | I82: 0.05588 | J82: 0.04176 | K82: FALSE | L82: FALSE | M82: FALSE | N82: FALSE | O82: FALSE | P82: FALSE | Q82: FALSE | R82: FALSE | S82: =S79 -> E20S
A83: E20PR (COM-20PR) | B83: FALSE | C83: FALSE | D83: FALSE | E83: 0.24591 | F83: 0.09295 | G83: 0.03589 | H83: FALSE | I83: 0.05611 | J83: 0.04221 | K83: FALSE | L83: FALSE | M83: FALSE | N83: FALSE | O83: FALSE | P83: FALSE | Q83: FALSE | R83: FALSE | S83: =S80 -> E20P
A84: E20TR (COM-20TR) | B84: FALSE | C84: FALSE | D84: FALSE | E84: 0.23934 | F84: 0.08735 | G84: 0.03322 | H84: FALSE | I84: 0.05189 | J84: 0.03907 | K84: FALSE | L84: FALSE | M84: FALSE | N84: FALSE | O84: FALSE | P84: FALSE | Q84: FALSE | R84: FALSE | S84: =S81 -> E20T
A85: LS-1, LS-2, LS-3 (SL-1) | B85: 0.07578 | C85: FALSE | D85: FALSE | E85: FALSE | F85: FALSE | G85: FALSE | H85: FALSE | I85: FALSE | J85: FALSE | K85: FALSE | L85: FALSE | M85: FALSE | N85: FALSE | O85: FALSE | P85: FALSE | Q85: FALSE | R85: FALSE | S85: ='PCIA FF'!A6 -> Streelights
A86: TC-1 | B86: 0.06406 | C86: FALSE | D86: FALSE | E86: FALSE | F86: FALSE | G86: FALSE | H86: FALSE | I86: FALSE | J86: FALSE | K86: FALSE | L86: FALSE | M86: FALSE | N86: FALSE | O86: FALSE | P86: FALSE | Q86: FALSE | R86: FALSE | S86: =S70 -> A1
A87: AG-1A | B87: FALSE | C87: 0.07706 | D87: 0.05682 | E87: FALSE | F87: FALSE | G87: FALSE | H87: FALSE | I87: FALSE | J87: FALSE | K87: FALSE | L87: FALSE | M87: 1.4 | N87: FALSE | O87: FALSE | P87: FALSE | Q87: 1.35 | R87: FALSE | S87: Agriculture
A88: AG-1B | B88: FALSE | C88: 0.0801 | D88: 0.05689 | E88: FALSE | F88: FALSE | G88: FALSE | H88: FALSE | I88: FALSE | J88: FALSE | K88: FALSE | L88: FALSE | M88: 2.11 | N88: FALSE | O88: FALSE | P88: FALSE | Q88: FALSE | R88: FALSE | S88: =S87 -> Agriculture
A89: AG-4A | B89: FALSE | C89: FALSE | D89: FALSE | E89: 0.13839 | F89: FALSE | G89: 0.04544 | H89: FALSE | I89: 0.04966 | J89: 0.03859 | K89: FALSE | L89: FALSE | M89: 1.39 | N89: FALSE | O89: FALSE | P89: FALSE | Q89: 1.34 | R89: FALSE | S89: =S88 -> Agriculture
A90: AG-4B | B90: FALSE | C90: FALSE | D90: FALSE | E90: 0.1001 | F90: FALSE | G90: 0.04754 | H90: FALSE | I90: 0.04573 | J90: 0.03516 | K90: 2.61 | L90: FALSE | M90: 2.46 | N90: FALSE | O90: FALSE | P90: FALSE | Q90: FALSE | R90: FALSE | S90: Agriculture
A91: AG-4C | B91: FALSE | C91: FALSE | D91: FALSE | E91: 0.11938 | F91: 0.05667 | G91: 0.03388 | H91: FALSE | I91: 0.04035 | J91: 0.03056 | K91: 6.06 | L91: 1.03 | M91: FALSE | N91: FALSE | O91: FALSE | P91: FALSE | Q91: FALSE | R91: FALSE | S91: Agriculture
A92: AG-5A, AG-5D | B92: FALSE | C92: FALSE | D92: FALSE | E92: 0.1279 | F92: FALSE | G92: 0.05052 | H92: FALSE | I92: 0.0541 | J92: 0.04244 | K92: FALSE | L92: FALSE | M92: 3.81 | N92: FALSE | O92: FALSE | P92: FALSE | Q92: 3.66 | R92: FALSE | S92: Agriculture
A93: AG-5B, AG-5E | B93: FALSE | C93: FALSE | D93: FALSE | E93: 0.12434 | F93: FALSE | G93: 0.0251 | H93: FALSE | I93: 0.04578 | J93: 0.01655 | K93: 5.73 | L93: FALSE | M93: 4.58 | N93: FALSE | O93: FALSE | P93: FALSE | Q93: FALSE | R93: FALSE | S93: Agriculture
A94: =A61 -> AG-5C, AG-5F | B94: FALSE | C94: FALSE | D94: FALSE | E94: 0.09876 | F94: 0.04639 | G94: 0.0269 | H94: FALSE | I94: 0.03273 | J94: 0.02388 | K94: 10.63 | L94: 2 | M94: FALSE | N94: FALSE | O94: FALSE | P94: FALSE | Q94: FALSE | R94: FALSE | S94: Agriculture
A95: AG-RA | B95: FALSE | C95: FALSE | D95: FALSE | E95: 0.24997 | F95: FALSE | G95: 0.04414 | H95: FALSE | I95: 0.05147 | J95: 0.04007 | K95: 1.35 | L95: FALSE | M95: FALSE | N95: FALSE | O95: FALSE | P95: FALSE | Q95: 1.3 | R95: FALSE | S95: Agriculture
A96: AG-RB | B96: FALSE | C96: FALSE | D96: FALSE | E96: 0.2233 | F96: FALSE | G96: 0.04362 | H96: FALSE | I96: 0.03794 | J96: 0.02858 | K96: 2.25 | L96: FALSE | M96: 2 | N96: FALSE | O96: FALSE | P96: FALSE | Q96: FALSE | R96: FALSE | S96: Agriculture
A97: AG-VA | B97: FALSE | C97: FALSE | D97: FALSE | E97: 0.23967 | F97: FALSE | G97: 0.06544 | H97: FALSE | I97: 0.074 | J97: 0.06283 | K97: FALSE | L97: FALSE | M97: 1.41 | N97: FALSE | O97: FALSE | P97: FALSE | Q97: 1.36 | R97: FALSE | S97: Agriculture
A98: AG-VB | B98: FALSE | C98: FALSE | D98: FALSE | E98: 0.19714 | F98: FALSE | G98: 0.04175 | H98: FALSE | I98: 0.03818 | J98: 0.02877 | K98: 2.36 | L98: FALSE | M98: 1.83 | N98: FALSE | O98: FALSE | P98: FALSE | Q98: FALSE | R98: FALSE | S98: Agriculture

Sheet PCIA FF (hidden)
A1: PCIA | C1: 2009 | D1: 2010 | E1: 2011 | F1: 2012 | G1: 2013 | H1: 2014 | I1: 2015 | J1: 2016 | K1: 2017 | L1: 2018 | O1: Error-checking and debugging:
A2: Residential | O2: Min | P2: Max
A3: A1 | C3: 0.02053 | D3: 0.02335 | E3: 0.02423 | F3: 0.02491 | G3: 0.02497 | H3: 0.02472 | I3: 0.0246 | J3: 0.02466 | K3: =J3 -> 0.02466 | L3: =J3 -> 0.02466 | O3: =MIN(C3:K3) -> 0.02053 | P3: =MAX(C3:K3) -> 0.02497
A4: A10 | C4: 0.02082 | D4: 0.02368 | E4: 0.02457 | F4: 0.02526 | G4: 0.02533 | H4: 0.02508 | I4: 0.02496 | J4: 0.02501 | K4: 0.02502 | L4: =K4 -> 0.02502 | O4: =MIN(C4:K4) -> 0.02082 | P4: =MAX(C4:K4) -> 0.02533
A5: E19 | C5: 0.01752 | D5: 0.01992 | E5: 0.02067 | F5: 0.02125 | G5: 0.02131 | H5: 0.02109 | I5: 0.02099 | J5: 0.02104 | K5: =J5 -> 0.02104 | L5: =J5 -> 0.02104 | O5: 0.01752 | P5: 0.02131
A6: Streelights | C6: 0.00491 | D6: 0.00558 | E6: 0.00579 | F6: 0.00595 | G6: 0.00597 | H6: 0.00591 | I6: 0.00588 | J6: 0.00589 | K6: =J6 -> 0.00589 | L6: =J6 -> 0.00589 | O6: 0.00491 | P6: 0.00597
A7: Standby | C7: 0.00996 | D7: 0.01132 | E7: 0.01175 | F7: 0.01208 | G7: 0.01211 | H7: 0.01199 | I7: 0.01193 | J7: 0.01196 | K7: =J7 -> 0.01196 | L7: =J7 -> 0.01196 | O7: 0.00996 | P7: 0.01211
A8: Agriculture | C8: 0.02051 | D8: 0.02332 | E8: 0.0242 | F8: 0.02488 | G8: 0.02494 | H8: 0.0247 | I8: 0.02457 | J8: 0.02463 | K8: 0.02463 | L8: 0.02463 | O8: 0.02051 | P8: 0.02494
A9: E20T | C9: 0.01445 | D9: 0.01643 | E9: 0.01704 | F9: 0.01752 | G9: 0.01757 | H9: 0.0174 | I9: 0.01731 | J9: 0.01735 | K9: =J9 -> 0.01735 | L9: =J9 -> 0.01735 | O9: 0.01445 | P9: 0.01757
A10: E20P | C10: 0.01572 | D10: 0.01787 | E10: 0.01854 | F10: 0.01906 | G10: 0.01911 | H10: 0.01892 | I10: 0.01883 | J10: 0.01887 | K10: 0.01888 | L10: =K10 -> 0.01888 | O10: 0.01572 | P10: 0.01911
A11: E20S | C11: 0.01686 | D11: 0.01916 | E11: 0.01989 | F11: 0.02045 | G11: 0.0205 | H11: 0.0203 | I11: 0.0202 | J11: 0.02024 | K11: 0.02025 | L11: =K11 -> 0.02025 | O11: 0.01686 | P11: 0.0205
A14: FFS | B14: Pre-2009 | C14: =C1 -> 2009 | D14: =D1 -> 2010 | E14: 2011 | F14: 2012 | G14: 2013 | H14: 2014 | I14: 2015 | J14: 2016 | K14: =K1 -> 2017 | L14: 2018
A15: Residential | B15: 0.0008 | C15: 0.0006 | D15: 0.00057 | E15: 0.00056 | F15: 0.00055 | G15: 0.00055 | H15: 0.00055 | I15: 0.00055 | J15: 0.00055 | K15: 0.00055 | L15: 0.00055
A16: A1 | B16: 0.0008 | C16: 0.00065 | D16: 0.00063 | E16: 0.00062 | F16: 0.00062 | G16: 0.00062 | H16: 0.00062 | I16: 0.00062 | J16: 0.00062 | K16: 0.00062 | L16: 0.00062 | O16: 0.00062 | P16: 0.00065
A17: A10 | B17: 0.00085 | C17: 0.00069 | D17: 0.00067 | E17: 0.00066 | F17: 0.00066 | G17: 0.00066 | H17: 0.00066 | I17: 0.00066 | J17: 0.00066 | K17: 0.00066 | L17: 0.00066 | O17: 0.00066 | P17: 0.00069
A18: E19 | B18: 0.00077 | C18: 0.00064 | D18: 0.00062 | E18: 0.00061 | F18: 0.00061 | G18: 0.00061 | H18: 0.00061 | I18: 0.00061 | J18: 0.00061 | K18: 0.00061 | L18: 0.00061 | O18: 0.00061 | P18: 0.00064
A19: Streelights | B19: 0.00066 | C19: 0.00062 | D19: 0.00062 | E19: 0.00061 | F19: 0.00061 | G19: 0.00061 | H19: 0.00061 | I19: 0.00061 | J19: 0.00061 | K19: 0.00061 | L19: 0.00061 | O19: 0.00061 | P19: 0.00062
A20: Standby | B20: 0.00059 | C20: 0.00051 | D20: 0.0005 | E20: 0.0005 | F20: 0.0005 | G20: 0.0005 | H20: 0.0005 | I20: 0.0005 | J20: 0.0005 | K20: 0.0005 | L20: 0.0005 | O20: 0.0005 | P20: 0.00051
A21: Agriculture | B21: 0.00071 | C21: 0.00056 | D21: 0.00054 | E21: 0.00053 | F21: 0.00052 | G21: 0.00052 | H21: 0.00053 | I21: 0.00053 | J21: 0.00053 | K21: 0.00053 | L21: 0.00053 | O21: 0.00052 | P21: 0.00056
A22: E20T | B22: 0.00064 | C22: 0.00054 | D22: 0.00052 | E22: 0.00052 | F22: 0.00051 | G22: 0.00051 | H22: 0.00051 | I22: 0.00051 | J22: 0.00051 | K22: 0.00051 | L22: 0.00051 | O22: 0.00051 | P22: 0.00054
A23: E20P | B23: 0.0007 | C23: 0.00058 | D23: 0.00057 | E23: 0.00056 | F23: 0.00056 | G23: 0.00056 | H23: 0.00056 | I23: 0.00056 | J23: 0.00056 | K23: 0.00056 | L23: 0.00056 | O23: 0.00056 | P23: 0.00058
A24: E20S | B24: 0.00073 | C24: 0.0006 | D24: 0.00058 | E24: 0.00058 | F24: 0.00057 | G24: 0.00057 | H24: 0.00058 | I24: 0.00058 | J24: 0.00058 | K24: 0.00058 | L24: 0.00058 | O24: 0.00057 | P24: 0.0006
A27: Solar Prem. (Solar Choice Premium) | B27: All Usage
A28: Residential | B28: 0.0261
A29: A1 | B29: 0.01671
A30: A10 | B30: 0.0149
A31: E19 | B31: 0.01699
A32: Streelights | B32: 0.01587
A33: Agriculture | B33: 0.03341
A34: E20T | B34: 0.02915
A35: E20P | B35: 0.02388
A36: E20S | B36: 0.02133

Sheet CARE (hidden)
A1: Commercial Care Discounts | F1: CARE Ind? | G1: ='Cost Comparison'!R14 -> No
C2: Usage | D2: Discount | F2: Eligible Usage | G2: =Calculation!E3 -> 0
A3: A1 | B3: 0.07894 | C3: =IF(AND($G$1="Yes",Calculation!$E$2=CARE!$A3,'Cost Comparison'!B6<>"TC-1"),Calculation!$E$3,0) -> 0 | D3: =B3*C3 -> 0
A4: A6 | B4: 0.07628 | C4: =IF(AND($G$1="Yes",Calculation!$E$2=CARE!$A4),Calculation!$E$3,0) -> 0 | D4: =B4*C4 -> 0
A5: A10 | B5: 0.07066 | C5: =IF(AND($G$1="Yes",Calculation!$E$2=CARE!$A5),Calculation!$E$3,0) -> 0 | D5: =B5*C5 -> 0
A6: E19 | B6: 0.06262 | C6: =IF(AND($G$1="Yes",Calculation!$E$2=CARE!$A6),Calculation!$E$3,0) -> 0 | D6: =B6*C6 -> 0
A7: E20 | B7: 0.05145 | C7: =IF(AND($G$1="Yes",Calculation!$E$2=CARE!$A7),Calculation!$E$3,0) -> 0 | D7: 0

Sheet Rebundled Rates (hidden)
B2: A1X (COM-1 TOU) | C2: MCE | G2: PG&E | H2: Overall
B3: Season | C3: MCE Gen. | D3: PG&E Delivery | E3: PG&E Fees | F3: Effective Rate | G3: PG&E Rate | H3: % Diff.
A4: Non-Seasonal | B4: All Usage | C4: =IF(INDEX(Rates!$A$69:$J$100,MATCH($B$2,Rates!$A$69:$A$100,0),MATCH('Rebundled Rates'!B4,Rates!$2:$2,0))=FALSE,"",INDEX(Rates!$A$69:$J$100,MATCH($B$2,Rates!$A$69:$A$100,0),MATCH('Rebundled Rates'!B4,Rates!$2:$2,0))) ->  | D4: =IF(INDEX(Rates!$A$36:$J$65,MATCH('Rebundled Rates'!$B$2,Rates!$A$2:$A$33,0),MATCH('Rebundled Rates'!B4,Rates!$2:$2,0))=FALSE,"",G4-INDEX(Rates!$A$36:$J$65,MATCH('Rebundled Rates'!$B$2,Rates!$A$2:$A$33,0),MATCH('Rebundled Rates'!B4,Rates!$2:$2,0))) ->  | E4: =IF(C4="","",VLOOKUP(VLOOKUP($B$2,Rates!$A$68:$S$100,19,0),'PCIA FF'!$A:$P,MATCH(MAX('PCIA FF'!$1:$1),'PCIA FF'!$1:$1,0),0)+VLOOKUP(VLOOKUP($B$2,Rates!$A$68:$S$100,19,0),'PCIA FF'!$14:$24,MATCH(MAX('PCIA FF'!$1:$1),'PCIA FF'!$1:$1,0),0)) ->  | F4: =IF(SUM(C4:E4)=0,"",SUM(C4:E4)) ->  | G4: =IF(INDEX(Rates!$A$2:$J$33,MATCH('Rebundled Rates'!$B$2,Rates!$A$2:$A$33,0),MATCH('Rebundled Rates'!B4,Rates!$2:$2,0))=FALSE,"",INDEX(Rates!$A$2:$J$33,MATCH('Rebundled Rates'!$B$2,Rates!$A$2:$A$33,0),MATCH('Rebundled Rates'!B4,Rates!$2:$2,0))) ->  | H4: =IFERROR((F4/G4)-1,"") -> 
A5: Non-TOU | B5: =Rates!C2 -> Summer | C5: =IF(INDEX(Rates!$A$69:$J$100,MATCH($B$2,Rates!$A$69:$A$100,0),MATCH('Rebundled Rates'!B5,Rates!$2:$2,0))=FALSE,"",INDEX(Rates!$A$69:$J$100,MATCH($B$2,Rates!$A$69:$A$100,0),MATCH('Rebundled Rates'!B5,Rates!$2:$2,0))) ->  | D5: =IF(INDEX(Rates!$A$36:$J$65,MATCH('Rebundled Rates'!$B$2,Rates!$A$2:$A$33,0),MATCH('Rebundled Rates'!B5,Rates!$2:$2,0))=FALSE,"",G5-INDEX(Rates!$A$36:$J$65,MATCH('Rebundled Rates'!$B$2,Rates!$A$2:$A$33,0),MATCH('Rebundled Rates'!B5,Rates!$2:$2,0))) ->  | E5: =IF(C5="","",VLOOKUP(VLOOKUP($B$2,Rates!$A$68:$S$100,19,0),'PCIA FF'!$A:$P,MATCH(MAX('PCIA FF'!$1:$1),'PCIA FF'!$1:$1,0),0)+VLOOKUP(VLOOKUP($B$2,Rates!$A$68:$S$100,19,0),'PCIA FF'!$14:$24,MATCH(MAX('PCIA FF'!$1:$1),'PCIA FF'!$1:$1,0),0)) ->  | F5: =IF(SUM(C5:E5)=0,"",SUM(C5:E5)) ->  | G5: =IF(INDEX(Rates!$A$2:$J$33,MATCH('Rebundled Rates'!$B$2,Rates!$A$2:$A$33,0),MATCH('Rebundled Rates'!B5,Rates!$2:$2,0))=FALSE,"",INDEX(Rates!$A$2:$J$33,MATCH('Rebundled Rates'!$B$2,Rates!$A$2:$A$33,0),MATCH('Rebundled Rates'!B5,Rates!$2:$2,0))) ->  | H5: =IFERROR((F5/G5)-1,"") -> 
A6: Non-TOU | B6: =Rates!D2 -> Winter | C6: =IF(INDEX(Rates!$A$69:$J$100,MATCH($B$2,Rates!$A$69:$A$100,0),MATCH('Rebundled Rates'!B6,Rates!$2:$2,0))=FALSE,"",INDEX(Rates!$A$69:$J$100,MATCH($B$2,Rates!$A$69:$A$100,0),MATCH('Rebundled Rates'!B6,Rates!$2:$2,0))) ->  | D6: =IF(INDEX(Rates!$A$36:$J$65,MATCH('Rebundled Rates'!$B$2,Rates!$A$2:$A$33,0),MATCH('Rebundled Rates'!B6,Rates!$2:$2,0))=FALSE,"",G6-INDEX(Rates!$A$36:$J$65,MATCH('Rebundled Rates'!$B$2,Rates!$A$2:$A$33,0),MATCH('Rebundled Rates'!B6,Rates!$2:$2,0))) ->  | E6: =IF(C6="","",VLOOKUP(VLOOKUP($B$2,Rates!$A$68:$S$100,19,0),'PCIA FF'!$A:$P,MATCH(MAX('PCIA FF'!$1:$1),'PCIA FF'!$1:$1,0),0)+VLOOKUP(VLOOKUP($B$2,Rates!$A$68:$S$100,19,0),'PCIA FF'!$14:$24,MATCH(MAX('PCIA FF'!$1:$1),'PCIA FF'!$1:$1,0),0)) ->  | G6: =IF(INDEX(Rates!$A$2:$J$33,MATCH('Rebundled Rates'!$B$2,Rates!$A$2:$A$33,0),MATCH('Rebundled Rates'!B6,Rates!$2:$2,0))=FALSE,"",INDEX(Rates!$A$2:$J$33,MATCH('Rebundled Rates'!$B$2,Rates!$A$2:$A$33,0),MATCH('Rebundled Rates'!B6,Rates!$2:$2,0))) -> 
A7: TOU Usage | B7: =Rates!E2 -> Summer Peak | C7: =IF(INDEX(Rates!$A$69:$J$100,MATCH($B$2,Rates!$A$69:$A$100,0),MATCH('Rebundled Rates'!B7,Rates!$2:$2,0))=FALSE,"",INDEX(Rates!$A$69:$J$100,MATCH($B$2,Rates!$A$69:$A$100,0),MATCH('Rebundled Rates'!B7,Rates!$2:$2,0))) -> 0.10617 | D7: =IF(INDEX(Rates!$A$36:$J$65,MATCH('Rebundled Rates'!$B$2,Rates!$A$2:$A$33,0),MATCH('Rebundled Rates'!B7,Rates!$2:$2,0))=FALSE,"",G7-INDEX(Rates!$A$36:$J$65,MATCH('Rebundled Rates'!$B$2,Rates!$A$2:$A$33,0),MATCH('Rebundled Rates'!B7,Rates!$2:$2,0))) -> 0.12816 | E7: =IF(C7="","",VLOOKUP(VLOOKUP($B$2,Rates!$A$68:$S$100,19,0),'PCIA FF'!$A:$P,MATCH(MAX('PCIA FF'!$1:$1),'PCIA FF'!$1:$1,0),0)+VLOOKUP(VLOOKUP($B$2,Rates!$A$68:$S$100,19,0),'PCIA FF'!$14:$24,MATCH(MAX('PCIA FF'!$1:$1),'PCIA FF'!$1:$1,0),0)) -> 0.02528 | F7: =IF(SUM(C7:E7)=0,"",SUM(C7:E7)) -> 0.25961 | G7: =IF(INDEX(Rates!$A$2:$J$33,MATCH('Rebundled Rates'!$B$2,Rates!$A$2:$A$33,0),MATCH('Rebundled Rates'!B7,Rates!$2:$2,0))=FALSE,"",INDEX(Rates!$A$2:$J$33,MATCH('Rebundled Rates'!$B$2,Rates!$A$2:$A$33,0),MATCH('Rebundled Rates'!B7,Rates!$2:$2,0))) -> 0.268 | H7: =IFERROR((F7/G7)-1,"") -> -0.03130597015
A8: TOU Usage | B8: =Rates!F2 -> Summer Partial Peak | C8: =IF(INDEX(Rates!$A$69:$J$100,MATCH($B$2,Rates!$A$69:$A$100,0),MATCH('Rebundled Rates'!B8,Rates!$2:$2,0))=FALSE,"",INDEX(Rates!$A$69:$J$100,MATCH($B$2,Rates!$A$69:$A$100,0),MATCH('Rebundled Rates'!B8,Rates!$2:$2,0))) -> 0.08394 | D8: =IF(INDEX(Rates!$A$36:$J$65,MATCH('Rebundled Rates'!$B$2,Rates!$A$2:$A$33,0),MATCH('Rebundled Rates'!B8,Rates!$2:$2,0))=FALSE,"",G8-INDEX(Rates!$A$36:$J$65,MATCH('Rebundled Rates'!$B$2,Rates!$A$2:$A$33,0),MATCH('Rebundled Rates'!B8,Rates!$2:$2,0))) -> 0.12816 | E8: =IF(C8="","",VLOOKUP(VLOOKUP($B$2,Rates!$A$68:$S$100,19,0),'PCIA FF'!$A:$P,MATCH(MAX('PCIA FF'!$1:$1),'PCIA FF'!$1:$1,0),0)+VLOOKUP(VLOOKUP($B$2,Rates!$A$68:$S$100,19,0),'PCIA FF'!$14:$24,MATCH(MAX('PCIA FF'!$1:$1),'PCIA FF'!$1:$1,0),0)) -> 0.02528 | F8: =IF(SUM(C8:E8)=0,"",SUM(C8:E8)) -> 0.23738 | G8: =IF(INDEX(Rates!$A$2:$J$33,MATCH('Rebundled Rates'!$B$2,Rates!$A$2:$A$33,0),MATCH('Rebundled Rates'!B8,Rates!$2:$2,0))=FALSE,"",INDEX(Rates!$A$2:$J$33,MATCH('Rebundled Rates'!$B$2,Rates!$A$2:$A$33,0),MATCH('Rebundled Rates'!B8,Rates!$2:$2,0))) -> 0.24435 | H8: =IFERROR((F8/G8)-1,"") -> -0.02852465725
A9: TOU Usage | B9: =Rates!G2 -> Summer Off Peak | C9: =IF(INDEX(Rates!$A$69:$J$100,MATCH($B$2,Rates!$A$69:$A$100,0),MATCH('Rebundled Rates'!B9,Rates!$2:$2,0))=FALSE,"",INDEX(Rates!$A$69:$J$100,MATCH($B$2,Rates!$A$69:$A$100,0),MATCH('Rebundled Rates'!B9,Rates!$2:$2,0))) -> 0.05823 | D9: =IF(INDEX(Rates!$A$36:$J$65,MATCH('Rebundled Rates'!$B$2,Rates!$A$2:$A$33,0),MATCH('Rebundled Rates'!B9,Rates!$2:$2,0))=FALSE,"",G9-INDEX(Rates!$A$36:$J$65,MATCH('Rebundled Rates'!$B$2,Rates!$A$2:$A$33,0),MATCH('Rebundled Rates'!B9,Rates!$2:$2,0))) -> 0.12816 | E9: =IF(C9="","",VLOOKUP(VLOOKUP($B$2,Rates!$A$68:$S$100,19,0),'PCIA FF'!$A:$P,MATCH(MAX('PCIA FF'!$1:$1),'PCIA FF'!$1:$1,0),0)+VLOOKUP(VLOOKUP($B$2,Rates!$A$68:$S$100,19,0),'PCIA FF'!$14:$24,MATCH(MAX('PCIA FF'!$1:$1),'PCIA FF'!$1:$1,0),0)) -> 0.02528 | F9: 0.21167 | G9: =IF(INDEX(Rates!$A$2:$J$33,MATCH('Rebundled Rates'!$B$2,Rates!$A$2:$A$33,0),MATCH('Rebundled Rates'!B9,Rates!$2:$2,0))=FALSE,"",INDEX(Rates!$A$2:$J$33,MATCH('Rebundled Rates'!$B$2,Rates!$A$2:$A$33,0),MATCH('Rebundled Rates'!B9,Rates!$2:$2,0))) -> 0.217 | H9: -0.02456221198
A10: TOU Usage | B10: =Rates!H2 -> Winter Peak | C10: =IF(INDEX(Rates!$A$69:$J$100,MATCH($B$2,Rates!$A$69:$A$100,0),MATCH('Rebundled Rates'!B10,Rates!$2:$2,0))=FALSE,"",INDEX(Rates!$A$69:$J$100,MATCH($B$2,Rates!$A$69:$A$100,0),MATCH('Rebundled Rates'!B10,Rates!$2:$2,0))) ->  | D10: =IF(INDEX(Rates!$A$36:$J$65,MATCH('Rebundled Rates'!$B$2,Rates!$A$2:$A$33,0),MATCH('Rebundled Rates'!B10,Rates!$2:$2,0))=FALSE,"",G10-INDEX(Rates!$A$36:$J$65,MATCH('Rebundled Rates'!$B$2,Rates!$A$2:$A$33,0),MATCH('Rebundled Rates'!B10,Rates!$2:$2,0))) ->  | E10: =IF(C10="","",VLOOKUP(VLOOKUP($B$2,Rates!$A$68:$S$100,19,0),'PCIA FF'!$A:$P,MATCH(MAX('PCIA FF'!$1:$1),'PCIA FF'!$1:$1,0),0)+VLOOKUP(VLOOKUP($B$2,Rates!$A$68:$S$100,19,0),'PCIA FF'!$14:$24,MATCH(MAX('PCIA FF'!$1:$1),'PCIA FF'!$1:$1,0),0)) ->  | G10: =IF(INDEX(Rates!$A$2:$J$33,MATCH('Rebundled Rates'!$B$2,Rates!$A$2:$A$33,0),MATCH('Rebundled Rates'!B10,Rates!$2:$2,0))=FALSE,"",INDEX(Rates!$A$2:$J$33,MATCH('Rebundled Rates'!$B$2,Rates!$A$2:$A$33,0),MATCH('Rebundled Rates'!B10,Rates!$2:$2,0))) -> 
A11: TOU Usage | B11: =Rates!I2 -> Winter Partial Peak | C11: =IF(INDEX(Rates!$A$69:$J$100,MATCH($B$2,Rates!$A$69:$A$100,0),MATCH('Rebundled Rates'!B11,Rates!$2:$2,0))=FALSE,"",INDEX(Rates!$A$69:$J$100,MATCH($B$2,Rates!$A$69:$A$100,0),MATCH('Rebundled Rates'!B11,Rates!$2:$2,0))) -> 0.08376 | D11: =IF(INDEX(Rates!$A$36:$J$65,MATCH('Rebundled Rates'!$B$2,Rates!$A$2:$A$33,0),MATCH('Rebundled Rates'!B11,Rates!$2:$2,0))=FALSE,"",G11-INDEX(Rates!$A$36:$J$65,MATCH('Rebundled Rates'!$B$2,Rates!$A$2:$A$33,0),MATCH('Rebundled Rates'!B11,Rates!$2:$2,0))) -> 0.11022 | E11: =IF(C11="","",VLOOKUP(VLOOKUP($B$2,Rates!$A$68:$S$100,19,0),'PCIA FF'!$A:$P,MATCH(MAX('PCIA FF'!$1:$1),'PCIA FF'!$1:$1,0),0)+VLOOKUP(VLOOKUP($B$2,Rates!$A$68:$S$100,19,0),'PCIA FF'!$14:$24,MATCH(MAX('PCIA FF'!$1:$1),'PCIA FF'!$1:$1,0),0)) -> 0.02528 | F11: 0.21926 | G11: =IF(INDEX(Rates!$A$2:$J$33,MATCH('Rebundled Rates'!$B$2,Rates!$A$2:$A$33,0),MATCH('Rebundled Rates'!B11,Rates!$2:$2,0))=FALSE,"",INDEX(Rates!$A$2:$J$33,MATCH('Rebundled Rates'!$B$2,Rates!$A$2:$A$33,0),MATCH('Rebundled Rates'!B11,Rates!$2:$2,0))) -> 0.22622 | H11: -0.03076651048
A12: TOU Usage | B12: =Rates!J2 -> Winter Off Peak | C12: =IF(INDEX(Rates!$A$69:$J$100,MATCH($B$2,Rates!$A$69:$A$100,0),MATCH('Rebundled Rates'!B12,Rates!$2:$2,0))=FALSE,"",INDEX(Rates!$A$69:$J$100,MATCH($B$2,Rates!$A$69:$A$100,0),MATCH('Rebundled Rates'!B12,Rates!$2:$2,0))) -> 0.0641 | D12: =IF(INDEX(Rates!$A$36:$J$65,MATCH('Rebundled Rates'!$B$2,Rates!$A$2:$A$33,0),MATCH('Rebundled Rates'!B12,Rates!$2:$2,0))=FALSE,"",G12-INDEX(Rates!$A$36:$J$65,MATCH('Rebundled Rates'!$B$2,Rates!$A$2:$A$33,0),MATCH('Rebundled Rates'!B12,Rates!$2:$2,0))) -> 0.11022 | E12: =IF(C12="","",VLOOKUP(VLOOKUP($B$2,Rates!$A$68:$S$100,19,0),'PCIA FF'!$A:$P,MATCH(MAX('PCIA FF'!$1:$1),'PCIA FF'!$1:$1,0),0)+VLOOKUP(VLOOKUP($B$2,Rates!$A$68:$S$100,19,0),'PCIA FF'!$14:$24,MATCH(MAX('PCIA FF'!$1:$1),'PCIA FF'!$1:$1,0),0)) -> 0.02528 | F12: 0.1996 | G12: =IF(INDEX(Rates!$A$2:$J$33,MATCH('Rebundled Rates'!$B$2,Rates!$A$2:$A$33,0),MATCH('Rebundled Rates'!B12,Rates!$2:$2,0))=FALSE,"",INDEX(Rates!$A$2:$J$33,MATCH('Rebundled Rates'!$B$2,Rates!$A$2:$A$33,0),MATCH('Rebundled Rates'!B12,Rates!$2:$2,0))) -> 0.2053 | H12: -0.02776424744
A13: Demand | B13: =Rates!K2 -> Summer Peak | C13: =IF(VLOOKUP($B$2,Rates!$A$69:$S$98,10+MATCH('Rebundled Rates'!B13,Rates!$K$69:$S$69,0),0)=FALSE,"",VLOOKUP($B$2,Rates!$A$69:$S$98,10+MATCH('Rebundled Rates'!B13,Rates!$K$69:$S$69,0),0)) ->  | D13: =IFERROR(G13-VLOOKUP($B$2,Rates!$A$36:$V$67,10+MATCH('Rebundled Rates'!B13,Rates!$K$2:$V$2,0),0),"") ->  | G13: =IF(VLOOKUP($B$2,Rates!$A$2:$V$33,10+MATCH('Rebundled Rates'!B13,Rates!$K$2:$V$2,0),0)=FALSE,"",VLOOKUP($B$2,Rates!$A$2:$V$33,10+MATCH('Rebundled Rates'!B13,Rates!$K$2:$V$2,0),0)) -> 
A14: Demand | B14: =Rates!L2 -> Summer Partial Peak | C14: =IF(VLOOKUP($B$2,Rates!$A$69:$S$98,10+MATCH('Rebundled Rates'!B14,Rates!$K$69:$S$69,0),0)=FALSE,"",VLOOKUP($B$2,Rates!$A$69:$S$98,10+MATCH('Rebundled Rates'!B14,Rates!$K$69:$S$69,0),0)) ->  | D14: =IFERROR(G14-VLOOKUP($B$2,Rates!$A$36:$V$67,10+MATCH('Rebundled Rates'!B14,Rates!$K$2:$V$2,0),0),"") ->  | G14: =IF(VLOOKUP($B$2,Rates!$A$2:$V$33,10+MATCH('Rebundled Rates'!B14,Rates!$K$2:$V$2,0),0)=FALSE,"",VLOOKUP($B$2,Rates!$A$2:$V$33,10+MATCH('Rebundled Rates'!B14,Rates!$K$2:$V$2,0),0)) -> 
A15: Demand | B15: =Rates!M2 -> Summer Maximum | C15: =IF(VLOOKUP($B$2,Rates!$A$69:$S$98,10+MATCH('Rebundled Rates'!B15,Rates!$K$69:$S$69,0),0)=FALSE,"",VLOOKUP($B$2,Rates!$A$69:$S$98,10+MATCH('Rebundled Rates'!B15,Rates!$K$69:$S$69,0),0)) ->  | D15: =IFERROR(G15-VLOOKUP($B$2,Rates!$A$36:$V$67,10+MATCH('Rebundled Rates'!B15,Rates!$K$2:$V$2,0),0),"") ->  | G15: =IF(VLOOKUP($B$2,Rates!$A$2:$V$33,10+MATCH('Rebundled Rates'!B15,Rates!$K$2:$V$2,0),0)=FALSE,"",VLOOKUP($B$2,Rates!$A$2:$V$33,10+MATCH('Rebundled Rates'!B15,Rates!$K$2:$V$2,0),0)) -> 
A16: Demand | B16: =Rates!N2 -> Winter Off Peak | C16: =IF(VLOOKUP($B$2,Rates!$A$69:$S$98,10+MATCH('Rebundled Rates'!B16,Rates!$K$69:$S$69,0),0)=FALSE,"",VLOOKUP($B$2,Rates!$A$69:$S$98,10+MATCH('Rebundled Rates'!B16,Rates!$K$69:$S$69,0),0)) ->  | D16: =IFERROR(G16-VLOOKUP($B$2,Rates!$A$36:$V$67,10+MATCH('Rebundled Rates'!B16,Rates!$K$2:$V$2,0),0),"") ->  | G16: =IF(VLOOKUP($B$2,Rates!$A$2:$V$33,10+MATCH('Rebundled Rates'!B16,Rates!$K$2:$V$2,0),0)=FALSE,"",VLOOKUP($B$2,Rates!$A$2:$V$33,10+MATCH('Rebundled Rates'!B16,Rates!$K$2:$V$2,0),0)) -> 
A17: Demand | B17: =Rates!O2 -> Winter Partial | C17: =IF(VLOOKUP($B$2,Rates!$A$69:$S$98,10+MATCH('Rebundled Rates'!B17,Rates!$K$69:$S$69,0),0)=FALSE,"",VLOOKUP($B$2,Rates!$A$69:$S$98,10+MATCH('Rebundled Rates'!B17,Rates!$K$69:$S$69,0),0)) ->  | D17: =IFERROR(G17-VLOOKUP($B$2,Rates!$A$36:$V$67,10+MATCH('Rebundled Rates'!B17,Rates!$K$2:$V$2,0),0),"") ->  | G17: =IF(VLOOKUP($B$2,Rates!$A$2:$V$33,10+MATCH('Rebundled Rates'!B17,Rates!$K$2:$V$2,0),0)=FALSE,"",VLOOKUP($B$2,Rates!$A$2:$V$33,10+MATCH('Rebundled Rates'!B17,Rates!$K$2:$V$2,0),0)) -> 
A18: Demand | B18: =Rates!P2 -> Winter Maximum | C18: =IF(VLOOKUP($B$2,Rates!$A$69:$S$98,10+MATCH('Rebundled Rates'!B18,Rates!$K$69:$S$69,0),0)=FALSE,"",VLOOKUP($B$2,Rates!$A$69:$S$98,10+MATCH('Rebundled Rates'!B18,Rates!$K$69:$S$69,0),0)) ->  | D18: =IFERROR(G18-VLOOKUP($B$2,Rates!$A$36:$V$67,10+MATCH('Rebundled Rates'!B18,Rates!$K$2:$V$2,0),0),"") ->  | F18: =IF(SUM(C18:E18)=0,"",SUM(C18:E18)) ->  | G18: =IF(VLOOKUP($B$2,Rates!$A$2:$V$33,10+MATCH('Rebundled Rates'!B18,Rates!$K$2:$V$2,0),0)=FALSE,"",VLOOKUP($B$2,Rates!$A$2:$V$33,10+MATCH('Rebundled Rates'!B18,Rates!$K$2:$V$2,0),0)) ->  | H18: =IFERROR((F18/G18)-1,"") -> 
A19: Ag. HP Load | B19: =Rates!Q2 -> Conn. Load Sum. | C19: =IF(VLOOKUP($B$2,Rates!$A$69:$S$98,10+MATCH('Rebundled Rates'!B19,Rates!$K$69:$S$69,0),0)=FALSE,"",VLOOKUP($B$2,Rates!$A$69:$S$98,10+MATCH('Rebundled Rates'!B19,Rates!$K$69:$S$69,0),0)) ->  | D19: =IFERROR(G19-VLOOKUP($B$2,Rates!$A$36:$V$67,10+MATCH('Rebundled Rates'!B19,Rates!$K$2:$V$2,0),0),"") ->  | F19: =IF(SUM(C19:E19)=0,"",SUM(C19:E19)) ->  | G19: =IF(VLOOKUP($B$2,Rates!$A$2:$V$33,10+MATCH('Rebundled Rates'!B19,Rates!$K$2:$V$2,0),0)=FALSE,"",VLOOKUP($B$2,Rates!$A$2:$V$33,10+MATCH('Rebundled Rates'!B19,Rates!$K$2:$V$2,0),0)) -> 
A20: Ag. HP Load | B20: =Rates!R2 -> Conn. Load Win. | C20: =IF(VLOOKUP($B$2,Rates!$A$69:$S$98,10+MATCH('Rebundled Rates'!B20,Rates!$K$69:$S$69,0),0)=FALSE,"",VLOOKUP($B$2,Rates!$A$69:$S$98,10+MATCH('Rebundled Rates'!B20,Rates!$K$69:$S$69,0),0)) ->  | D20: =IFERROR(G20-VLOOKUP($B$2,Rates!$A$36:$V$67,10+MATCH('Rebundled Rates'!B20,Rates!$K$2:$V$2,0),0),"") ->  | G20: =IF(VLOOKUP($B$2,Rates!$A$2:$V$33,10+MATCH('Rebundled Rates'!B20,Rates!$K$2:$V$2,0),0)=FALSE,"",VLOOKUP($B$2,Rates!$A$2:$V$33,10+MATCH('Rebundled Rates'!B20,Rates!$K$2:$V$2,0),0)) -> 

Sheet Changelog (hidden)
A1: 2016-11-15 | B1: Added Changelog
B2: Added lbs or metric tons for CO2 switch
B3: Changed CO2e description to CO2 (due to recently discovered information that PG&E emissions only includes CO2 and omits other equivalent gasses which would increase their emissions factor)
A4: 2017-01-03 | B4: Updated for PG&E AET
B5: Fixed AG-1 A/B maximum demand defect
B6: Fixed AG-4 C demand component defect
A7: 2017-03-01 | B7: Updated PCIA methodology
B8: Addressed PG&E Solar Choice Calculation issues
B9: Updated PG&E Solar Choice Rates
B10: Updated rates to PG&E 3/1 rate change
B11: Updated description of PCIA Vintages
B12: Added MCE 4/1 Rates
A14: 2017-06-07 | B14: split Billing days into billing days Summer and Billing Days Winter
B15: Changed Demand charges to be responsive to # of billing days in the month
